bitfinex-derivatives/quotes_ETHF0:USTF0_20260307
["timestamp","ask_amount","ask_price","bid_price","bid_amount"]
[1772850986592,0.86798624,1977.5,1976.4,0.55961306]
[1772850986894,6.58186701,1977.4,1976.4,0.55961306]
[1772850987088,0.5528858,1977.4,1976.4,0.55961306]
[1772850987289,0.00623857,1977.4,1976.4,0.55961306]
[1772850989799,0.5528858,1977.4,1976.4,0.55961306]
[1772850990392,0.5528858,1977.4,1976.0,0.55961306]
[1772850990393,0.54664723,1977.2,1976.0,0.55961306]
[1772850990695,0.54664723,1977.0,1976.0,0.55961306]
[1772850990897,6.43391535,1977.4,1976.0,0.55961306]
[1772850991097,0.54664723,1977.2,1976.2,0.55961306]
[1772850992798,0.54538171,1977.0,1976.2,0.55961306]
[1772851023821,0.59144363,1976.2,1975.0,0.60327468]
[1772851024028,6.17463295,1976.3,1975.0,0.60327468]
[1772851024029,1.95488588,1975.4,1975.0,0.60327468]
[1772851024325,11.08088588,1975.4,1974.5,0.60327468]
[1772851024826,11.08723035,1975.4,1974.5,0.60773632]
[1772851026927,11.08723035,1975.4,1974.6,0.61033831]
[1772851027630,9.13234447,1975.4,1974.6,0.61033831]
[1772851028226,0.00634447,1975.4,1974.6,0.61033831]
[1772851028522,9.132,1975.3,1974.6,0.61033831]
[1772851036237,9.132,1975.3,1974.7,2.57464234]
[1772851037135,1.95488588,1975.2,1974.5,0.00446164]
[1772851038240,9.117,1975.1,1974.5,0.00446164]
[1772851038932,9.119,1975.0,1974.5,0.00446164]
[1772851042140,9.123,1974.9,1974.5,0.00446164]
[1772851042839,1.95488588,1975.2,1974.5,0.00446164]
[1772851043040,9.124,1975.1,1974.5,0.00446164]
[1772851043337,0.00634447,1975.4,1974.7,2.58062221]
[1772851043537,9.076,1975.3,1974.7,2.58062221]
[1772851043739,9.076,1975.3,1974.7,0.62573633]
[1772851044040,9.076,1975.3,1974.5,2.58508385]
[1772851044339,9.078,1975.2,1974.5,1.95934752]
[1772851046638,0.00634447,1975.4,1974.6,0.61273817]
[1772851046943,9.09,1975.3,1974.6,0.61273817]
[1772851047945,9.09,1975.3,1974.5,1.95934752]
[1772851049150,9.09,1975.3,1974.5,2.57226228]
[1772851050642,9.067,1975.2,1974.8,0.61274642]
[1772851051043,0.00634447,1975.4,1974.8,0.61274642]
[1772851051246,9.07,1975.3,1974.8,0.61274642]
[1772851051750,9.07,1975.3,1974.7,0.61274642]
[1772851052051,9.07,1975.3,1974.6,0.61274642]
[1772851053151,6.9263044,1975.2,1974.6,0.61274642]
[1772851053350,0.58469851,1975.1,1974.6,0.61274642]
[1772851053551,9.07,1975.3,1974.6,0.61274642]
[1772851053845,6.92358046,1975.2,1974.6,0.61274642]
[1772851054047,9.07,1975.3,1974.6,0.61274642]
[1772851054048,0.58223102,1975.1,1974.6,0.61274642]
[1772851054253,9.07,1975.3,1974.6,0.61274642]
[1772851054445,6.92362655,1975.2,1974.6,0.61274642]
[1772851054650,0.58223472,1975.1,1974.6,0.61274642]
[1772851054949,9.07,1975.3,1974.6,0.61274642]
[1772851055150,6.92362564,1975.2,1974.6,0.61274642]
[1772851055453,0.58223465,1975.1,1974.6,0.61274642]
[1772851055652,9.093,1975.0,1974.6,0.61274642]
[1772851058561,4.22512734,1975.4,1974.8,0.61127652]
[1772851058758,16.01717355,1975.3,1974.8,0.61127652]
[1772851058961,0.56721834,1975.2,1974.8,0.61127652]
[1772851059562,0.56721834,1975.2,1974.6,0.61127652]
[1772851059756,0.56721834,1975.2,1974.5,0.61573816]
[1772851062760,0.56399889,1975.1,1974.6,2.56799779]
[1772851063062,9.122,1975.2,1974.6,2.56799779]
[1772851063262,9.122,1975.2,1974.5,0.00446164]
[1772851063263,0.56404465,1975.1,1974.5,0.00446164]
[1772851063454,9.122,1975.2,1974.5,0.00446164]
[1772851063660,6.91189904,1975.1,1974.5,0.00446164]
[1772851063859,9.122,1975.2,1974.5,0.61757355]
[1772851064058,6.91133559,1975.1,1974.5,0.61757355]
[1772851064260,9.122,1975.2,1974.5,0.61757355]
[1772851064559,6.91277576,1975.1,1974.5,0.61757355]
[1772851064860,9.122,1975.2,1974.5,0.61757355]
[1772851065165,6.91277255,1975.1,1974.5,0.61757355]
[1772851065461,9.122,1975.2,1974.5,0.61757355]
[1772851065762,6.91414341,1975.1,1974.5,0.61757355]
[1772851066063,9.122,1975.2,1974.5,0.61757355]
[1772851066264,6.91581268,1975.1,1974.5,0.61757355]
[1772851066562,9.122,1975.2,1974.5,0.61757355]
[1772851066862,6.91581297,1975.1,1974.5,0.61757355]
[1772851067053,9.122,1975.2,1974.5,0.00446164]
[1772851067255,1.95488588,1975.3,1974.5,0.62292962]
[1772851067256,16.0548153,1975.1,1974.5,0.62292962]
[1772851067458,9.70435969,1975.0,1974.5,0.62292962]
[1772851067656,9.14,1975.0,1974.5,0.62292962]
[1772851068357,9.143,1974.9,1974.5,0.62292962]
[1772851068563,9.144,1974.8,1974.5,0.62292962]
[1772851069966,9.144,1974.8,1974.4,1.95488588]
[1772851070166,9.74060744,1974.8,1974.5,0.59307454]
[1772851070965,9.74060744,1974.8,1974.5,0.598551]
[1772851073468,0.59660744,1974.7,1974.1,0.59307454]
[1772851074568,0.59660744,1974.7,1974.1,0.59867132]
[1772851076772,4.21878287,1975.3,1974.1,0.59867132]
[1772851076974,0.59660744,1974.8,1974.1,0.59867132]
[1772851083777,4.21878287,1975.3,1974.1,0.59867132]
[1772851083983,0.58100026,1975.1,1974.1,0.59867132]
[1772851088888,0.5803943,1975.0,1974.1,0.59867132]
[1772851090283,0.5803943,1975.2,1974.4,0.57823161]
[1772851090787,0.00634447,1975.4,1974.7,0.57823161]
[1772851092989,0.01408611,1975.4,1974.7,0.57823161]
[1772851095692,0.00634447,1975.4,1974.7,0.57823161]
[1772851095892,0.00769559,1975.7,1975.0,0.59958834]
[1772851096085,0.00769559,1975.8,1975.0,0.59958834]
[1772851096992,0.01424062,1975.8,1975.0,0.59958834]
[1772851102291,0.01424062,1975.8,1975.2,0.59604189]
[1772851104098,0.00654503,1975.8,1975.2,0.59604189]
[1772851111802,0.01984369,1975.7,1974.6,6.398]
[1772851111996,0.54624929,1974.5,1973.5,10.49320397]
[1772851112295,1.958379,1974.7,1973.7,0.59332964]
[1772851112296,0.54624929,1974.7,1973.7,0.59332964]
[1772851112506,0.54624929,1974.7,1973.8,0.59332964]
[1772851112895,0.54624929,1974.7,1973.8,0.59760732]
[1772851113192,0.54624929,1974.7,1973.9,10.49320397]
[1772851113398,0.54624929,1974.5,1973.8,0.59760732]
[1772851114403,0.54624929,1974.5,1973.8,0.00427768]
[1772851116604,0.54624929,1974.4,1973.9,0.59332964]
[1772851116902,0.55247766,1974.4,1973.9,0.59332964]
[1772851117102,0.55247766,1974.4,1974.1,0.59332964]
[1772851117805,0.55247766,1974.4,1974.0,10.49320397]
[1772851118005,0.00622837,1974.4,1974.1,0.59332964]
[1772851118699,0.55247766,1974.4,1974.1,0.59332964]
[1772851118904,0.55247766,1974.4,1974.1,10.49320397]
[1772851120601,0.55247766,1974.4,1973.8,0.00427768]
[1772851120807,0.55247766,1974.4,1973.8,9.90415201]
[1772851122302,0.55247766,1974.4,1973.8,0.00427768]
[1772851123708,0.54624929,1974.2,1973.6,0.59332964]
[1772851124504,0.54624929,1974.2,1973.6,9.89987433]
[1772851124704,0.54624929,1974.0,1973.6,10.49832579]
[1772851125107,0.54624929,1974.0,1973.6,11.1016954]
[1772851125308,0.54624929,1974.2,1973.7,0.59332964]
[1772851125710,0.54624929,1974.2,1973.7,1.19669925]
[1772851126213,0.25329,1974.1,1973.1,0.59332964]
[1772851126710,0.25329,1974.1,1973.2,10.12840833]
[1772851126910,0.25329,1974.1,1973.2,0.65277817]
[1772851127114,0.25329,1974.1,1973.2,0.65734112]
[1772851127307,0.25335,1973.7,1972.6,0.6541156]
[1772851127707,8.845,1973.6,1972.6,0.6541156]
[1772851127906,0.03716292,1973.5,1972.6,0.6541156]
[1772851128108,0.03716292,1973.5,1972.7,10.12991175]
[1772851128317,0.03716292,1973.5,1972.7,0.00621717]
[1772851129208,0.07469078,1973.3,1972.7,0.00621717]
[1772851129408,0.07469078,1973.3,1972.7,9.47672551]
[1772851129609,0.07469078,1973.3,1972.7,0.00621717]
[1772851129812,0.07469078,1973.3,1972.8,10.44985885]
[1772851130111,0.0697914,1973.1,1972.8,9.47563016]
[1772851130714,0.0697914,1973.1,1972.9,0.3405722]
[1772851130915,8.812,1973.3,1972.9,0.3405722]
[1772851131109,8.812,1973.3,1972.8,0.66953126]
[1772851131415,8.8,1973.3,1972.8,10.14516142]
[1772851131608,8.813,1973.3,1972.8,9.47563016]
[1772851132010,8.813,1973.3,1972.8,9.47050834]
[1772851133110,8.857,1973.2,1972.8,10.4843282]
[1772851133310,8.857,1973.2,1972.8,10.143756]
[1772851133505,8.857,1973.2,1972.8,9.47563016]
[1772851133715,8.857,1973.2,1972.9,0.3405722]
[1772851134015,2.77576035,1973.7,1972.9,0.3405722]
[1772851134210,8.848,1973.6,1972.9,10.14399146]
[1772851134912,2.77576035,1973.7,1972.9,10.14399146]
[1772851135116,8.823,1973.6,1972.9,10.14399146]
[1772851135810,8.843,1973.5,1973.0,1.00847363]
[1772851136009,8.849,1973.4,1973.1,0.66790143]
[1772851136414,8.849,1973.4,1973.2,0.3405722]
[1772851136614,5.03208005,1973.4,1973.0,0.66790143]
[1772851136821,5.03208005,1973.4,1973.2,0.3405722]
[1772851137012,0.25331,1974.0,1973.0,0.66790143]
[1772851137212,0.25331,1974.0,1973.2,0.66696696]
[1772851137513,0.23976716,1973.9,1973.2,0.66696696]
[1772851137815,0.23976716,1973.9,1973.3,9.47563016]
[1772851138012,0.23976716,1973.9,1973.3,9.20269432]
[1772851138911,0.23976716,1973.9,1973.3,9.54326652]
[1772851139211,0.01398944,1973.7,1973.3,9.97993238]
[1772851139412,0.01398944,1973.7,1973.4,0.3405722]
[1772851139717,8.90998944,1973.7,1973.4,0.77723806]
[1772851140016,8.90998944,1973.7,1973.6,0.32658276]
[1772851140211,8.90998944,1973.7,1973.4,0.77723806]
[1772851141312,8.90998944,1973.7,1973.3,9.98761417]
[1772851141712,0.01398944,1973.7,1973.3,9.98761417]
[1772851141910,0.01136087,1973.9,1973.4,0.78517719]
[1772851142115,8.947,1973.9,1973.4,0.78517719]
[1772851142514,8.95836087,1973.9,1973.4,0.78517719]
[1772851143515,0.00912735,1973.8,1973.5,9.19356697]
[1772851143717,8.972,1973.7,1973.3,0.79568675]
[1772851144014,8.976,1973.7,1973.3,0.79568675]
[1772851144219,8.979,1973.7,1973.4,9.98951368]
[1772851144421,8.979,1973.7,1973.4,0.79594671]
[1772851145820,4.47207287,1974.1,1973.4,0.79594671]
[1772851146022,4.47207287,1974.1,1973.5,9.99001954]
[1772851146023,6.8444878,1974.0,1973.5,9.99001954]
[1772851146225,6.8444878,1973.9,1973.5,0.79645257]
[1772851146418,9.007,1973.8,1973.6,9.99001954]
[1772851146623,9.007,1973.8,1973.6,0.79645257]
[1772851146823,0.25329,1974.1,1973.7,9.19356697]
[1772851147123,15.79772099,1974.0,1973.7,9.19356697]
[1772851147322,9.013,1974.0,1973.7,9.19356697]
[1772851147523,9.019,1973.9,1973.7,9.98927792]
[1772851148324,9.019,1973.9,1973.7,0.79571095]
[1772851148827,9.033,1973.9,1973.8,9.98620047]
[1772851149020,8.51404756,1973.9,1973.8,0.55691221]
[1772851149319,8.51404756,1973.9,1972.9,0.75254143]
[1772851149520,8.51404756,1973.9,1973.0,0.75254143]
[1772851150028,9.044,1974.0,1973.2,0.75254143]
[1772851150724,9.05,1974.3,1973.4,0.75254143]
[1772851151024,9.80568709,1974.3,1973.4,0.75254143]
[1772851151225,6.79968289,1974.2,1973.4,0.75254143]
[1772851151422,9.80568709,1974.3,1973.4,0.75254143]
[1772851151626,6.79968259,1974.2,1973.6,0.75254143]
[1772851151828,9.80568709,1974.3,1973.6,0.75254143]
[1772851152025,9.06,1974.2,1973.8,0.75254143]
[1772851152227,9.062,1974.3,1973.8,0.75254143]
[1772851152424,0.76191546,1974.4,1974.0,0.75254143]
[1772851153834,0.76191546,1974.4,1974.1,8.95819185]
[1772851154033,9.82868709,1974.3,1974.1,0.00512652]
[1772851156136,9.073,1974.3,1974.1,0.75766795]
[1772851157338,9.82868709,1974.3,1974.1,8.95819185]
[1772851158440,9.82868709,1974.3,1974.1,8.9645714]
[1772851158938,0.75568709,1974.3,1974.1,8.9645714]
[1772851159235,9.85668709,1974.3,1974.1,8.9645714]
[1772851159642,9.85668709,1974.3,1974.1,0.00637955]
[1772851160141,0.75568709,1974.3,1974.1,0.00637955]
[1772851160341,9.107,1974.3,1974.2,8.95819185]
[1772851160640,0.67162262,1974.4,1974.2,8.8106995]
[1772851160841,9.109,1974.3,1974.2,8.8106995]
[1772851162242,9.116,1974.3,1974.2,8.8106995]
[1772851165240,0.67162262,1974.4,1974.2,8.8106995]
[1772851165445,9.131,1974.3,1974.2,9.56324093]
[1772851165946,0.00622837,1974.4,1974.2,9.56324093]
[1772851166147,9.14022837,1974.4,1974.3,0.75254143]
[1772851166948,9.14022837,1974.4,1974.2,9.56324093]
[1772851167148,0.00622837,1974.4,1974.3,0.75254143]
[1772851167450,2.64569045,1974.6,1974.3,0.75254143]
[1772851167646,9.141,1974.5,1974.4,8.23669951]
[1772851167845,9.141,1974.5,1974.3,0.74172683]
[1772851168349,9.14561907,1974.5,1974.3,0.74172683]
[1772851168551,9.83511883,1974.5,1974.1,0.00637955]
[1772851168849,9.83511883,1974.5,1974.2,0.75254143]
[1772851170446,0.69411883,1974.5,1974.2,0.75254143]
[1772851170750,9.154,1974.4,1974.2,0.75254143]
[1772851171246,9.90968709,1974.4,1974.1,0.00637955]
[1772851171448,0.75568709,1974.3,1973.9,0.75254143]
[1772851172446,0.75568709,1974.3,1973.9,0.75763334]
[1772851175653,3.00500833,1974.2,1973.9,0.75763334]
[1772851178252,1.95966025,1974.2,1973.9,0.75763334]
[1772851182259,1.04534808,1974.3,1973.9,0.75763334]
[1772851182461,9.195,1974.3,1973.9,0.75763334]
[1772851182760,10.24034808,1974.3,1973.9,0.75763334]
[1772851182957,10.24234808,1974.3,1973.9,0.75763334]
[1772851183559,1.04534808,1974.3,1973.9,0.75763334]
[1772851183759,9.2,1974.3,1973.9,0.75763334]
[1772851184451,10.24534808,1974.3,1973.9,0.75763334]
[1772851184755,1.04996715,1974.5,1973.9,0.75763334]
[1772851184960,0.00461907,1974.5,1973.9,0.75763334]
[1772851185355,9.769,1974.6,1973.9,0.75763334]
[1772851185559,9.769,1974.6,1974.1,1.00832344]
[1772851185759,0.565,1974.6,1974.1,1.00832344]
[1772851185951,9.772,1974.6,1974.1,1.00832344]
[1772851186356,9.7772824,1974.6,1974.1,1.00832344]
[1772851186757,0.5702824,1974.6,1974.1,1.00832344]
[1772851188665,0.41087677,1974.6,1974.1,1.00832344]
[1772851188864,9.216,1974.9,1974.1,1.00832344]
[1772851189064,11.17566025,1974.9,1974.1,1.00832344]
[1772851189765,12.22100833,1974.9,1974.1,1.00832344]
[1772851189966,12.22652206,1974.9,1974.1,1.00832344]
[1772851190164,3.01052206,1974.9,1974.1,1.00832344]
[1772851190365,12.23052206,1974.9,1974.1,1.00832344]
[1772851191068,1.04534808,1974.8,1974.1,1.00832344]
[1772851198667,1.03582073,1975.2,1974.1,1.00832344]
[1772851198869,10.27082073,1975.4,1974.3,0.94318162]
[1772851199071,1.03582073,1975.3,1974.3,0.94318162]
[1772851199871,1.03582073,1975.7,1974.4,0.94318162]
[1772851200071,1.03582073,1975.5,1974.4,0.94318162]
[1772851200669,1.03582073,1975.4,1974.4,0.94318162]
[1772851201573,1.03582073,1975.4,1974.5,0.94318162]
[1772851201772,1.03582073,1975.6,1974.5,0.94318162]
[1772851203378,0.94062918,1975.7,1974.8,1.02116752]
[1772851203770,9.202,1976.0,1974.8,1.02116752]
[1772851203970,0.82611861,1975.9,1974.8,1.02116752]
[1772851204777,0.83084513,1975.9,1974.8,1.02116752]
[1772851205573,0.83084513,1975.9,1975.0,1.02116752]
[1772851207786,0.83084513,1975.9,1975.1,1.02116752]
[1772851207985,0.00472652,1975.9,1975.1,1.02116752]
[1772851209084,0.8140872,1976.6,1975.1,1.02116752]
[1772851209487,0.8140872,1976.5,1975.1,1.02116752]
[1772851209986,0.82028737,1976.5,1975.1,1.02116752]
[1772851211183,0.82028737,1976.5,1975.3,1.02116752]
[1772851211388,0.82028737,1976.5,1975.3,1.02747327]
[1772851216594,0.82028737,1976.5,1975.5,1.02116752]
[1772851222100,0.82028737,1976.5,1975.6,40.8]
[1772851222303,0.82028737,1976.5,1975.7,1.02116752]
[1772851227697,0.82028737,1976.5,1975.8,1.02116752]
[1772851232006,0.59172726,1976.4,1975.7,40.8]
[1772851232208,0.59172726,1976.4,1975.7,41.68760806]
[1772851235606,0.53202985,1976.2,1975.7,41.68760806]
[1772851236005,0.53202985,1976.2,1975.7,0.88760806]
[1772851238409,0.53202985,1976.2,1975.6,0.88760806]
[1772851238907,0.50759936,1976.1,1975.5,0.88760806]
[1772851239806,0.50144098,1975.9,1975.5,0.88760806]
[1772851245212,0.50144098,1975.9,1975.4,0.88760806]
[1772851248614,0.43647425,1976.1,1975.4,0.88760806]
[1772851248915,7.11547463,1976.0,1975.4,0.88760806]
[1772851249115,0.34708471,1976.0,1975.4,0.88760806]
[1772851254617,0.30227362,1975.8,1975.4,0.88760806]
[1772851260820,1.9570553,1975.9,1975.4,0.88760806]
[1772851261025,0.26413048,1976.0,1975.4,0.88760806]
[1772851261723,11.37613184,1976.1,1975.4,0.88760806]
[1772851261914,6.77074184,1976.0,1975.4,0.88760806]
[1772851262118,11.37613184,1976.1,1975.4,0.88760806]
[1772851262316,6.77129328,1976.0,1975.4,0.88760806]
[1772851262519,0.25234677,1976.0,1975.4,0.88760806]
[1772851263421,0.2450578,1976.1,1975.4,0.88760806]
[1772851263626,9.162,1976.2,1975.4,0.88760806]
[1772851264821,0.23164226,1976.4,1975.6,0.80559563]
[1772851265025,9.39564226,1976.4,1975.6,0.80559563]
[1772851265227,6.77596416,1976.3,1975.6,0.80559563]
[1772851265427,9.39564226,1976.4,1975.6,0.80559563]
[1772851265626,6.77596478,1976.3,1975.6,0.80559563]
[1772851265826,0.23164226,1976.4,1975.6,0.80559563]
[1772851266928,9.39368722,1976.5,1975.8,0.80559563]
[1772851267227,6.77634433,1976.4,1975.8,0.80559563]
[1772851267427,9.39368722,1976.5,1975.8,0.80559563]
[1772851267729,6.77609209,1976.4,1975.8,0.80559563]
[1772851268028,9.39368722,1976.5,1975.8,0.80559563]
[1772851268330,6.77602534,1976.4,1975.8,0.80559563]
[1772851268529,9.39368722,1976.5,1975.8,0.80559563]
[1772851268729,6.77562632,1976.4,1975.8,0.80559563]
[1772851268929,9.39668722,1976.5,1975.8,0.80559563]
[1772851269126,6.77562761,1976.4,1975.8,0.80559563]
[1772851269425,0.00620017,1976.5,1975.8,0.80559563]
[1772851271634,0.19631833,1976.8,1976.0,0.80559563]
[1772851272023,0.19048998,1976.7,1976.0,0.80559563]
[1772851272630,0.19468699,1976.7,1976.0,0.80559563]
[1772851274835,0.00419701,1976.7,1976.0,0.80559563]
[1772851283846,0.12346322,1977.2,1976.4,0.80559563]
[1772851284542,0.12346322,1977.2,1976.5,0.80559563]
[1772851284846,0.12869447,1977.2,1976.5,0.80559563]
[1772851285046,2.07153282,1977.1,1976.5,0.80559563]
[1772851285943,1.9570553,1977.1,1976.5,0.80559563]
[1772851286548,2.06600596,1977.1,1976.5,0.80559563]
[1772851287046,0.10317338,1977.0,1976.5,0.80559563]
[1772851289549,0.00523125,1977.2,1976.5,0.80559563]
[1772851289550,2.04684548,1976.9,1976.5,0.80559563]
[1772851289843,2.73379458,1976.7,1976.4,0.55313505]
[1772851290645,0.00523125,1977.2,1976.7,0.80559563]
[1772851290842,0.00523125,1977.2,1976.7,0.81066746]
[1772851295251,0.80926069,1977.2,1976.7,0.81066746]
[1772851298352,0.80402944,1977.1,1976.7,0.81066746]
[1772851299756,0.80926069,1977.2,1976.7,0.81066746]
[1772851308066,0.80402944,1977.1,1976.7,0.81066746]
[1772851309859,0.80402944,1976.9,1976.5,0.76329545]
[1772851310458,0.80402944,1976.7,1976.2,0.76329545]
[1772851310865,0.80402944,1976.7,1976.2,0.76866005]
[1772851318369,0.80402944,1976.7,1976.2,0.0053646]
[1772851318866,0.80402944,1976.7,1976.2,0.76797009]
[1772851320666,0.80402944,1976.7,1976.2,0.0053646]
[1772851323673,0.80402944,1976.7,1976.0,0.73178946]
[1772851323874,0.76867497,1976.6,1976.0,0.73178946]
[1772851324671,0.76867497,1976.6,1976.0,0.73695862]
[1772851324865,1.95536045,1977.0,1976.0,0.73695862]
[1772851325070,0.76867497,1976.8,1976.0,0.73695862]
[1772851327073,0.76867497,1976.7,1976.0,0.73695862]
[1772851327579,0.76867497,1976.8,1976.0,0.73695862]
[1772851329378,0.76867497,1977.1,1976.2,0.73178946]
[1772851331277,0.76867497,1976.9,1976.2,0.73178946]
[1772851334177,0.77390622,1977.2,1976.2,0.73178946]
[1772851342681,0.77390622,1977.2,1976.3,22.434]
[1772851342882,0.77390622,1977.2,1976.4,0.73178946]
[1772851366397,0.00523125,1977.2,1976.4,0.73178946]
[1772851366798,0.72681377,1977.2,1976.4,0.73178946]
[1772851371998,0.00523125,1977.2,1976.4,0.73178946]
[1772851373200,0.72681377,1977.2,1976.4,0.73178946]
[1772851378505,0.72681377,1977.2,1976.7,0.60198254]
[1772851386420,0.62456969,1977.7,1977.1,0.6154575]
[1772851386816,0.62456969,1977.6,1976.7,0.6154575]
[1772851387417,0.62456969,1977.4,1976.8,40.8]
[1772851387814,1.95368965,1977.3,1976.8,40.8]
[1772851388022,0.62456969,1977.2,1976.5,0.6154575]
[1772851388521,0.62456969,1977.2,1976.6,41.4154575]
[1772851390222,0.62456969,1977.2,1976.9,0.6154575]
[1772851390417,0.62456969,1977.3,1976.9,0.6154575]
[1772851393617,0.62456969,1977.0,1976.6,40.8]
[1772851393820,0.62456969,1977.0,1976.4,0.6154575]
[1772851394524,0.62456969,1977.0,1976.2,0.6154575]
[1772851400326,0.62456969,1976.8,1976.2,0.6154575]
[1772851413843,0.62456969,1976.8,1976.1,40.8]
[1772851414141,0.62456969,1976.8,1976.1,41.34980217]
[1772851414534,0.62456969,1976.8,1976.2,0.54980217]
[1772851418947,0.62456969,1976.8,1976.3,0.54980217]
[1772851425546,0.59305085,1977.0,1976.3,0.54980217]
[1772851425845,0.59305085,1977.0,1976.5,0.54980217]
[1772851441563,0.59305085,1977.0,1976.2,0.57802889]
[1772851461473,0.59305085,1977.0,1976.2,0.58886431]
[1772851461675,0.547675,1976.8,1976.1,41.38886431]
[1772851461872,0.547675,1976.8,1976.2,0.58886431]
[1772851462873,0.547675,1976.8,1976.1,40.8]
[1772851463078,0.547675,1976.8,1976.0,0.59403347]
[1772851463279,0.547675,1976.6,1976.0,0.59403347]
[1772851463478,0.547675,1976.6,1976.0,0.00516916]
[1772851464272,0.547675,1976.4,1975.7,40.8]
[1772851465283,0.547675,1976.4,1975.7,0.00517202]
[1772851467078,0.547675,1976.4,1975.7,0.59403633]
[1772851468874,0.547675,1976.8,1975.7,0.59403633]
[1772851469682,0.547675,1976.7,1975.7,0.59403633]
[1772851471085,0.547675,1976.7,1975.8,0.58886431]
[1772851474386,0.547675,1976.7,1975.9,1.95424252]
[1772851474589,0.547675,1976.7,1976.0,0.58409595]
[1772851475586,0.57899659,1977.0,1976.0,0.58409595]
[1772851477084,0.57899659,1977.0,1975.9,1.95424252]
[1772851477291,0.57899659,1976.5,1975.7,0.58926797]
[1772851479092,0.57899659,1976.5,1975.7,0.00517202]
[1772851480696,0.57899659,1976.5,1975.3,0.58409595]
[1772851481794,0.57899659,1976.5,1975.5,0.58409595]
[1772851487107,0.57899659,1976.5,1975.7,0.58409595]
[1772851489014,0.57899659,1976.8,1975.8,0.58409595]
[1772851489308,0.57899659,1976.8,1976.1,0.58409595]
[1772851496719,2.53323911,1976.8,1975.3,13.21761217]
[1772851497011,1.95424252,1975.5,1974.5,0.60380554]
[1772851497218,8.157,1975.8,1974.5,0.60380554]
[1772851497515,0.00261452,1975.6,1974.6,0.60380554]
[1772851497711,0.00261452,1975.4,1974.6,0.60380554]
[1772851497915,0.00359935,1975.6,1974.7,0.60331312]
[1772851500621,0.00469468,1975.7,1974.9,0.60232292]
[1772851500821,0.01180376,1975.7,1974.9,0.60232292]
[1772851501022,0.00705956,1975.6,1974.9,0.60232292]
[1772851503416,0.00705956,1975.6,1974.9,0.19704292]
[1772851504022,0.00705956,1975.6,1975.1,0.59880978]
[1772851509623,0.00469468,1975.7,1975.1,0.59880978]
[1772851509825,0.4298643,1975.7,1975.1,0.59880978]
[1772851521523,0.00469468,1975.7,1975.1,0.59880978]
[1772851526037,0.44509586,1975.7,1975.1,0.59880978]
[1772851526335,0.44040118,1975.5,1975.1,0.59880978]
[1772851530838,0.44862649,1975.7,1975.1,0.59880978]
[1772851531038,7.99046254,1975.6,1975.1,0.59880978]
[1772851531240,6.9455853,1975.5,1975.1,0.59880978]
[1772851531537,0.44388032,1975.6,1975.1,0.59880978]
[1772851531738,6.93989206,1975.5,1975.1,0.59880978]
[1772851531930,0.44388032,1975.6,1975.1,0.59880978]
[1772851532233,6.93989359,1975.5,1975.1,0.59880978]
[1772851532430,0.44388032,1975.6,1975.1,0.59880978]
[1772851532640,6.93598002,1975.5,1975.1,0.59880978]
[1772851532839,0.44388032,1975.6,1975.1,0.59880978]
[1772851533035,6.93598002,1975.5,1975.1,0.59880978]
[1772851533341,0.44388032,1975.6,1975.1,0.59880978]
[1772851533539,6.93704886,1975.5,1975.1,0.59880978]
[1772851533741,0.44388032,1975.6,1975.1,0.59880978]
[1772851534038,6.93706275,1975.5,1975.1,0.59880978]
[1772851534240,0.44388032,1975.6,1975.1,0.59880978]
[1772851534432,6.93723479,1975.5,1975.1,0.59880978]
[1772851534637,0.44388032,1975.6,1975.1,0.59880978]
[1772851534832,6.93723495,1975.5,1975.1,0.59880978]
[1772851535033,0.44388032,1975.6,1975.1,0.59880978]
[1772851535237,6.93734635,1975.5,1975.1,0.59880978]
[1772851535432,0.44388032,1975.6,1975.1,0.59880978]
[1772851535632,6.9375589,1975.5,1975.1,0.59880978]
[1772851535834,0.44388032,1975.6,1975.1,0.59880978]
[1772851536032,6.9375589,1975.5,1975.1,0.59880978]
[1772851536234,0.44388032,1975.6,1975.1,0.59880978]
[1772851536432,6.93779251,1975.5,1975.1,0.59880978]
[1772851536638,0.44495015,1975.7,1975.1,0.59880978]
[1772851536842,7.53907174,1975.6,1975.1,0.59880978]
[1772851537042,6.93779199,1975.5,1975.1,0.59880978]
[1772851537243,0.44495015,1975.7,1975.1,0.59880978]
[1772851537435,7.53937361,1975.6,1975.1,0.59880978]
[1772851537738,6.93806939,1975.5,1975.1,0.59880978]
[1772851538034,0.44495015,1975.7,1975.1,0.59880978]
[1772851538238,7.5393733,1975.6,1975.1,0.59880978]
[1772851538439,6.93806908,1975.5,1975.1,0.59880978]
[1772851538639,0.44495015,1975.7,1975.1,0.59880978]
[1772851538838,7.53976667,1975.6,1975.1,0.59880978]
[1772851539041,6.93843071,1975.5,1975.1,0.59880978]
[1772851539340,0.44495015,1975.7,1975.1,0.59880978]
[1772851539542,7.54027875,1975.6,1975.1,0.59880978]
[1772851539741,6.93890176,1975.5,1975.1,0.59880978]
[1772851539936,0.44495015,1975.7,1975.1,0.59880978]
[1772851540134,7.54028012,1975.6,1975.1,0.59880978]
[1772851540342,6.93890302,1975.5,1975.1,0.59880978]
[1772851540537,0.44495015,1975.7,1975.1,0.59880978]
[1772851540741,6.93890687,1975.6,1975.1,0.59880978]
[1772851540937,6.93890687,1975.5,1975.1,0.59880978]
[1772851541235,0.44495015,1975.7,1975.1,0.59880978]
[1772851541437,7.54029186,1975.6,1975.1,0.59880978]
[1772851541634,6.9389134,1975.5,1975.1,0.59880978]
[1772851541835,0.44495015,1975.7,1975.1,0.59880978]
[1772851542040,7.54029186,1975.6,1975.1,0.59880978]
[1772851542237,6.9389134,1975.5,1975.1,0.59880978]
[1772851542442,0.00469468,1975.7,1975.1,0.59880978]
[1772851542645,6.93888569,1975.6,1975.1,0.59880978]
[1772851542845,0.00469468,1975.7,1975.1,0.59880978]
[1772851543149,6.93889103,1975.6,1975.1,0.59880978]
[1772851543450,0.00469468,1975.7,1975.1,0.59880978]
[1772851543747,6.93875112,1975.6,1975.1,0.59880978]
[1772851543948,0.00469468,1975.7,1975.1,0.59880978]
[1772851544149,6.93963705,1975.6,1975.1,0.59880978]
[1772851544345,0.00469468,1975.7,1975.1,0.59880978]
[1772851544542,0.4438817,1975.5,1975.1,0.59880978]
[1772851545151,0.00469468,1975.7,1975.1,0.59880978]
[1772851545351,7.38526512,1975.6,1975.1,0.59880978]
[1772851545551,0.44432094,1975.6,1975.1,0.59880978]
[1772851564770,4.21489881,1975.9,1975.1,0.59880978]
[1772851564971,6.69090701,1975.9,1975.2,0.56162172]
[1772851565268,0.49727368,1976.1,1975.2,0.56162172]
[1772851565874,0.50319958,1976.1,1975.2,0.56162172]
[1772851574984,0.0059259,1976.1,1975.2,0.56162172]
[1772851577386,0.61152311,1976.1,1975.2,0.56162172]
[1772851581586,0.0059259,1976.1,1975.2,0.56162172]